bitfinex/quotes_ETHUSD_20250411
["timestamp","ask_amount","ask_price","bid_price","bid_amount"]
[1744372393291,14.04817,1557.7,1557.4,7.22154]
[1744372393483,20.46808,1557.7,1557.4,7.22154]
[1744372394365,14.04817,1557.7,1557.4,7.22144]
[1744372394985,14.04817,1557.7,1557.4,0.8006]
[1744372395192,7.6284,1557.7,1557.3,0.7765]
[1744372395399,6.42138,1557.3,1557.1,0.7765]
[1744372395710,12.84294,1557.3,1557.1,0.7765]
[1744372395916,12.84294,1557.3,1556.9,0.8266]
[1744372395917,6.42221,1557.1,1556.9,0.8266]
[1744372396099,6.42315,1556.9,1556.7,0.86332828]
[1744372396286,6.42343,1556.8,1556.7,0.86332828]
[1744372396488,6.42422,1556.7,1556.4,4.44712141]
[1744372396801,12.84844,1556.7,1556.4,4.44712141]
[1744372397039,6.42422,1556.7,1556.4,0.7957]
[1744372397186,6.42422,1556.7,1556.4,7.22071]
[1744372397809,6.42354,1556.8,1556.5,6.42463]
[1744372398010,12.84714,1556.8,1556.5,6.42463]
[1744372398314,12.84715,1556.8,1556.5,6.42465]
[1744372398514,12.84715,1556.8,1556.4,14.31556911]
[1744372398723,6.42276,1557.0,1556.6,6.42387]
[1744372398891,6.818,1556.9,1556.7,7.18404]
[1744372399532,13.24103,1556.9,1556.6,12.84799]
[1744372399672,13.24103,1556.9,1556.6,12.84801]
[1744372399878,13.24103,1556.9,1556.6,12.848]
[1744372400178,6.818,1556.9,1556.7,6.85299105]
[1744372401219,13.24103,1556.9,1556.7,0.42929105]
[1744372401416,19.66441,1556.9,1556.7,0.42929105]
[1744372401714,6.818,1556.9,1556.8,0.42845779]
[1744372402972,6.818,1556.9,1556.8,6.85188779]
[1744372404651,6.818,1556.9,1556.8,0.42861588]
[1744372406344,6.818,1556.9,1556.8,6.85204588]
[1744372406847,6.819,1557.3,1557.1,6.42213]
[1744372407072,6.819,1557.3,1557.2,0.42417767]
[1744372407251,6.819,1557.3,1557.2,1.19857767]
[1744372407748,6.819,1557.3,1557.2,9.02463344]
[1744372407976,61.878,1557.4,1557.2,9.02463344]
[1744372408113,61.878,1557.4,1557.3,6.42137]
[1744372408448,61.878,1557.4,1557.3,6.84068704]
[1744372408652,6.819,1557.4,1557.3,6.84068704]
[1744372408860,6.819,1557.4,1557.3,0.41931704]
[1744372409352,13.23995,1557.4,1557.3,0.41931704]
[1744372409728,13.23995,1557.4,1557.0,16.59663]
[1744372409927,13.23995,1557.4,1557.3,0.42073855]
[1744372410222,13.23995,1557.4,1557.0,7.17408]
[1744372410223,6.4214,1557.3,1557.0,7.17408]
[1744372410421,12.84309,1557.3,1557.0,7.17408]
[1744372410626,12.84309,1557.3,1557.1,0.42240364]
[1744372411750,7.23978,1557.2,1557.1,0.42240364]
[1744372412122,6.42227,1557.1,1556.9,0.8119]
[1744372412323,6.42227,1557.1,1556.8,7.18586]
[1744372412758,6.42227,1557.1,1556.8,13.60917]
[1744372412946,6.81,1557.0,1556.9,6.42302]
[1744372413152,6.81,1557.0,1556.8,13.60912]
[1744372413457,6.81,1557.0,1556.9,6.42302]
[1744372413636,6.81,1557.0,1556.8,7.18581]
[1744372413637,6.81,1557.0,1556.8,13.60912]
[1744372413956,6.81,1557.0,1556.8,7.18581]
[1744372414462,6.81,1557.0,1556.7,12.8475]
[1744372414463,13.23267,1557.0,1556.7,12.8475]
[1744372414667,6.81,1557.0,1556.8,6.42342]
[1744372414957,6.81,1557.0,1556.8,6.42331]
[1744372415162,6.81,1557.0,1556.9,0.39118802]
[1744372415549,6.81,1557.0,1556.8,6.42331]
[1744372415765,6.81,1557.0,1556.9,0.39118802]
[1744372415930,13.2326,1557.0,1556.9,0.39118802]
[1744372416131,13.2326,1557.0,1556.7,12.84748]
[1744372416439,6.81,1557.0,1556.8,6.81539109]
[1744372416648,6.81,1557.0,1556.8,13.23876109]
[1744372416965,6.81,1557.0,1556.8,6.81532109]
[1744372417271,13.23265,1557.0,1556.8,0.39202109]
[1744372417426,13.23264,1557.0,1556.8,0.39202109]
[1744372418731,7.18122,1556.9,1556.8,0.39202109]
[1744372419261,6.4236,1556.8,1556.5,10.84756141]
[1744372419464,6.42397,1556.7,1556.5,0.7716]
[1744372420364,7.18132,1556.9,1556.5,0.83583947]
[1744372420556,7.18132,1556.9,1556.6,12.84808]
[1744372420757,7.18132,1556.9,1556.6,6.42393]
[1744372420955,7.18132,1556.9,1556.6,12.84808]
[1744372421429,13.60448,1556.9,1556.6,6.42393]
[1744372421626,7.18132,1556.9,1556.6,12.84808]
[1744372421942,13.60449,1556.9,1556.6,6.42393]
[1744372422155,0.7582,1556.9,1556.5,0.7716]
[1744372422461,6.81,1557.0,1556.8,6.42329]
[1744372423061,6.81,1557.0,1556.9,6.42288]
[1744372423366,6.81,1557.0,1556.7,0.8052]
[1744372423367,13.23278,1557.0,1556.7,7.22899]
[1744372423566,13.23278,1557.0,1556.7,7.22894]
[1744372423771,6.81,1557.0,1556.8,6.42327]
[1744372424155,6.81,1557.0,1556.8,12.84659]
[1744372424357,6.81,1557.0,1556.8,6.42327]
[1744372425374,6.81,1557.0,1556.8,12.84659]
[1744372425757,6.81,1557.0,1556.8,6.42327]
[1744372426364,13.23264,1557.0,1556.7,15.38308914]
[1744372426677,13.23264,1557.0,1556.7,15.38943886]
[1744372426852,13.23264,1557.0,1556.8,6.42341]
[1744372428064,6.81,1557.0,1556.8,6.42341]
[1744372428557,6.81,1557.0,1556.8,12.84671]
[1744372428876,6.81,1557.0,1556.8,14.38558089]
[1744372429278,6.81,1557.0,1556.8,7.96217089]
[1744372429484,6.81,1557.0,1556.8,12.84661]
[1744372429666,6.81,1557.0,1556.8,6.4233]
[1744372430038,6.81,1557.0,1556.9,0.39390823]
[1744372430242,6.81,1557.0,1556.8,6.4233]
[1744372430479,6.81,1557.0,1556.8,12.84662]
[1744372430638,6.81,1557.0,1556.9,0.38956289]
[1744372430843,6.81,1557.0,1556.9,6.81258289]
[1744372431384,6.81,1557.0,1556.9,0.38956289]
[1744372431745,13.2327,1557.0,1556.7,7.23502972]
[1744372431945,6.81,1557.0,1556.9,0.38814138]
[1744372432141,6.81,1557.0,1556.8,6.42324]
[1744372432359,6.81,1557.0,1556.8,12.84654]
[1744372432557,6.81,1557.0,1556.9,0.38845732]
[1744372432759,6.81,1557.0,1556.8,12.84655]
[1744372432984,6.81,1557.0,1556.9,0.38845732]
[1744372433184,6.81,1557.0,1556.8,12.84655]
[1744372433389,6.81,1557.0,1556.9,0.38845732]
[1744372433593,6.81,1557.0,1556.8,12.84655]
[1744372433758,6.81,1557.0,1556.9,0.38814138]
[1744372433954,6.81,1557.0,1556.8,6.42324]
[1744372434154,6.81,1557.0,1556.9,0.38829935]
[1744372434354,6.81,1557.0,1556.8,6.42324]
[1744372434604,6.81,1557.0,1556.9,0.38829935]
[1744372434949,6.81,1557.0,1556.8,6.42324]
[1744372435155,6.81,1557.0,1556.9,0.38988008]
[1744372435396,6.81,1557.0,1556.8,6.42324]
[1744372435582,6.81,1557.0,1556.9,0.3897221]
[1744372435778,6.81,1557.0,1556.7,0.81154972]
[1744372435979,6.42343,1556.8,1556.7,0.00634972]
[1744372436581,6.42343,1556.8,1556.7,0.39571304]
[1744372436765,13.59801,1556.9,1556.7,0.39571304]
[1744372437293,6.42343,1556.8,1556.7,0.39571304]
[1744372438185,6.42343,1556.8,1556.7,0.38936332]
[1744372438496,6.42398,1556.7,1556.4,7.27640181]
[1744372438662,6.42398,1556.7,1556.4,7.21216]
[1744372438663,12.84812,1556.7,1556.4,7.21216]
[1744372438862,6.811,1556.6,1556.4,7.21216]
[1744372439371,6.811,1556.6,1556.5,6.42467]
[1744372439796,6.811,1556.6,1556.4,7.21215]
[1744372440094,6.811,1556.6,1556.4,7.27639232]
[1744372440289,6.811,1556.6,1556.4,13.70136232]
[1744372440469,6.811,1556.6,1556.4,7.21215]
[1744372441795,6.811,1556.6,1556.4,7.27639231]
[1744372441971,13.23529,1556.6,1556.4,0.7872]
[1744372442172,6.42467,1556.5,1556.3,0.8199]
[1744372442409,6.42467,1556.5,1556.2,10.89710141]
[1744372442569,6.42467,1556.5,1556.2,17.32289141]
[1744372442774,14.04069,1556.6,1556.3,6.42537]
[1744372442775,7.6164,1556.6,1556.3,6.42537]
[1744372443113,6.802,1556.6,1556.5,6.42452]
[1744372443697,6.802,1556.6,1556.4,13.67768]
[1744372443898,6.802,1556.6,1556.4,7.25269]
[1744372445308,6.802,1556.6,1556.5,0.39102943]
[1744372447709,6.802,1556.6,1556.5,6.81569943]
[1744372448425,6.802,1556.6,1556.5,0.39102943]
[1744372449992,13.22625,1556.6,1556.5,0.39102943]
[1744372452495,6.42468,1556.5,1556.2,17.29604141]
[1744372452692,6.42468,1556.5,1556.2,13.64462]
[1744372452909,6.42468,1556.5,1556.3,0.39441363]
[1744372453929,7.19068,1556.4,1556.3,0.39441363]
[1744372454224,0.7656,1556.1,1555.8,14.11945968]
[1744372454422,6.803,1556.0,1555.8,14.11945968]
[1744372454628,6.803,1556.0,1555.9,0.3983807]
[1744372454823,6.803,1556.0,1555.9,6.8255207]
[1744372455537,6.804,1556.2,1556.1,6.42627]
[1744372455827,6.42493,1556.5,1556.2,7.23478]
[1744372455987,6.42493,1556.5,1556.2,13.66056]
[1744372456191,1.3315,1556.4,1556.3,0.39504598]
[1744372456537,7.7566,1556.4,1555.8,13.2558245]
[1744372456692,6.42611,1556.2,1555.9,12.85418]
[1744372456896,6.804,1556.3,1556.0,0.7642]
[1744372457092,6.42593,1556.2,1556.0,0.7642]
[1744372457426,6.42593,1556.2,1555.9,18.61787386]
[1744372457587,6.42593,1556.2,1555.9,8.53943245]
[1744372457790,6.42593,1556.2,1555.9,7.21392]
[1744372458291,6.42593,1556.2,1555.9,13.59096]
[1744372458491,19.65547,1556.3,1556.0,6.42673]
[1744372458728,13.22962,1556.3,1555.9,0.7869]
[1744372458931,6.804,1556.3,1556.1,6.42631]
[1744372459119,13.22951,1556.3,1556.0,12.85309]
[1744372459631,13.22951,1556.3,1555.9,10.86533141]
[1744372459850,13.22951,1556.3,1556.0,6.42669]
[1744372460056,13.22951,1556.3,1556.0,12.85338]
[1744372460252,6.804,1556.3,1556.1,6.82301313]
[1744372460463,6.804,1556.3,1556.2,7.1904]
[1744372460819,6.804,1556.4,1556.2,14.0121795]
[1744372461730,3.0,1556.7,1556.2,14.0121795]
[1744372461731,0.8164,1556.8,1556.3,6.42518]
[1744372462057,6.804,1556.5,1556.3,13.24642388]
[1744372462847,6.804,1556.6,1556.4,12.85016]
[1744372463225,6.804,1556.6,1556.5,0.39471951]
[1744372464159,6.804,1556.6,1556.5,6.81938951]
[1744372466433,6.804,1556.6,1556.5,0.39471951]
[1744372467355,14.05885,1556.6,1556.5,0.39471951]
[1744372467556,6.42537,1556.4,1556.1,6.4262]
[1744372468349,12.8508,1556.4,1556.1,6.4262]
[1744372468670,6.42591,1556.2,1555.9,7.19392]
[1744372468877,13.22991,1556.2,1555.9,7.19392]
[1744372469373,19.65605,1556.2,1555.9,0.7669]
[1744372469575,6.42714,1555.9,1555.8,0.4009445]
[1744372470032,7.1988,1556.1,1555.8,0.4009445]
[1744372470368,13.23004,1556.2,1555.9,0.7935]
[1744372470536,19.6561,1556.2,1555.9,0.7935]
[1744372470736,7.23873,1556.3,1555.9,7.22061]
[1744372471074,6.42609,1556.2,1555.8,6.8283645]
[1744372471366,13.23048,1556.1,1555.8,0.4009445]
[1744372471571,6.42714,1555.9,1555.8,0.4009445]
[1744372472548,6.796,1556.1,1555.8,0.4009445]
[1744372472782,6.796,1556.1,1555.9,12.854]
[1744372472992,6.796,1556.1,1555.9,7.75247445]
[1744372473304,6.796,1556.1,1555.8,13.2559245]
[1744372474180,6.796,1556.1,1555.8,6.8284345]
[1744372474689,13.22243,1556.1,1555.8,0.4009445]
[1744372475267,13.22243,1556.1,1555.9,0.40473506]
[1744372475679,0.7973,1556.0,1555.8,0.4009445]
[1744372475869,14.01973,1556.1,1555.8,0.4009445]
[1744372476168,20.44636,1556.1,1555.8,0.4009445]
[1744372476467,12.85371,1556.0,1555.8,0.4009445]
[1744372477190,6.4268,1556.0,1555.8,0.4009445]
[1744372478582,14.01971,1556.1,1555.8,0.4009445]
[1744372479090,20.44621,1556.1,1555.8,0.4009445]
[1744372479290,12.85363,1556.0,1555.8,0.4009445]
[1744372480093,6.42675,1556.0,1555.8,0.4009445]
[1744372481596,12.85368,1556.0,1555.8,0.4009445]
[1744372481899,6.42675,1556.0,1555.8,0.4009445]
[1744372482404,0.8188,1556.2,1555.9,6.42702]
[1744372482606,0.8188,1556.2,1555.9,14.25540945]
[1744372483364,0.8188,1556.2,1556.0,6.42672]
[1744372484500,0.8188,1556.2,1555.9,1.40134945]
[1744372484689,7.24483,1556.2,1555.8,7.5864145]
[1744372485091,7.24501,1556.2,1555.9,0.36945343]
[1744372485494,7.24501,1556.2,1555.8,6.8282745]
[1744372485707,6.42638,1556.1,1556.0,0.36925245]
[1744372485866,6.42638,1556.1,1555.9,0.37008654]
[1744372486202,6.42638,1556.1,1555.8,6.8282745]
[1744372486203,6.797,1556.0,1555.8,13.2557045]
[1744372486406,6.797,1556.0,1555.9,6.42714]
[1744372487401,6.797,1556.0,1555.8,13.2556245]
[1744372487603,6.797,1556.0,1555.8,6.8282745]
[1744372487790,6.797,1556.1,1555.9,7.21358]
[1744372487990,6.797,1556.1,1555.9,0.7866]
[1744372488208,13.22339,1556.1,1555.9,0.7866]
[1744372488475,13.22339,1556.1,1555.8,0.4009445]
[1744372488673,13.97473,1556.1,1555.8,6.8284845]
[1744372488869,6.42701,1556.0,1555.8,0.4009445]
[1744372489380,12.85388,1556.0,1555.8,0.4009445]
[1744372489679,6.42687,1556.0,1555.8,0.4009445]
[1744372489879,12.85374,1556.0,1555.8,0.4009445]
[1744372490081,6.42687,1556.0,1555.8,0.4009445]
[1744372490311,6.42687,1556.0,1555.9,0.36901633]
[1744372490610,6.42687,1556.0,1555.8,0.4009445]
[1744372490815,12.85392,1556.0,1555.9,0.36901633]
[1744372491106,12.85392,1556.0,1555.8,0.4009445]
[1744372491420,7.78744,1555.9,1555.8,0.4009445]
[1744372492108,7.23744,1555.9,1555.8,0.4009445]
[1744372492317,14.03444,1555.9,1555.8,0.4009445]
[1744372493304,14.58444,1555.9,1555.8,0.4009445]
[1744372496084,18.23586141,1555.9,1555.8,0.4009445]
[1744372497338,21.23586141,1555.9,1555.8,0.4009445]
[1744372502847,10.23744,1555.9,1555.8,0.4009445]
[1744372503047,17.03044,1555.9,1555.8,0.77147735]
[1744372503350,16.22014,1555.9,1555.8,0.77147735]
[1744372503645,16.22014,1555.9,1555.8,0.4009445]
[1744372503849,16.77014,1555.9,1555.8,0.4009445]
[1744372504753,16.22014,1555.9,1555.8,0.4009445]
[1744372504951,16.77014,1555.9,1555.8,0.4009445]
[1744372506619,16.77014,1555.9,1555.8,0.77247527]
[1744372506817,16.77014,1555.9,1555.8,0.4009445]
[1744372508456,16.22014,1555.9,1555.8,0.4009445]
[1744372508652,9.42714,1555.9,1555.8,0.4009445]
[1744372508830,16.22014,1555.9,1555.8,0.77247527]
[1744372509036,16.22014,1555.9,1555.8,0.4009445]
[1744372509562,6.42714,1555.9,1555.8,0.4009445]
[1744372509726,13.22014,1555.9,1555.8,0.4009445]
[1744372510124,13.22014,1555.9,1555.8,0.77247527]
[1744372510325,13.22014,1555.9,1555.8,0.4009445]
[1744372510526,13.22014,1555.9,1555.8,0.77358281]
[1744372511138,6.793,1555.9,1555.8,7.20104281]
[1744372511850,6.793,1555.9,1555.8,0.4009445]
[1744372512018,6.793,1555.9,1555.8,0.77358281]
[1744372513677,13.22014,1555.9,1555.8,0.77358281]
[1744372514269,16.77014,1555.9,1555.8,0.77358281]
[1744372514440,9.42714,1555.9,1555.8,0.4009445]
[1744372514636,16.22014,1555.9,1555.8,0.4009445]
[1744372514960,17.02204,1555.9,1555.8,0.4009445]
[1744372515467,16.22014,1555.9,1555.8,0.4009445]
[1744372515627,16.22014,1555.9,1555.8,0.77366193]
[1744372516093,9.42714,1555.9,1555.8,0.77366193]
[1744372516269,6.793,1555.9,1555.8,0.77366193]
[1744372516456,6.793,1555.9,1555.8,7.20122193]
[1744372516942,6.793,1555.9,1555.8,8.64656012]
[1744372517138,6.793,1555.9,1555.8,9.40456012]
[1744372517575,61.919,1556.0,1555.8,15.83212012]
[1744372518092,61.919,1556.0,1555.8,9.40456012]
[1744372518294,61.919,1556.0,1555.8,7.95922193]
[1744372518452,68.34574,1556.0,1555.8,1.53166193]
[1744372519905,61.919,1556.0,1555.8,1.53166193]
[1744372520108,61.919,1556.0,1555.8,14.38648193]
[1744372520309,61.919,1556.0,1555.8,7.5863045]
[1744372520519,61.919,1556.0,1555.9,0.37188328]
[1744372520806,61.919,1556.0,1555.8,7.5863045]
[1744372521107,61.919,1556.0,1555.9,0.37188328]
[1744372521305,68.34575,1556.0,1555.9,0.37188328]
[1744372521614,61.919,1556.0,1555.9,0.37033503]
[1744372521795,61.919,1556.0,1555.8,7.5864645]
[1744372522108,61.919,1556.0,1555.9,0.37033503]
[1744372522309,68.34573,1556.0,1555.9,0.37033503]
[1744372522525,68.34573,1556.0,1555.8,1.1589445]
[1744372522725,68.34573,1556.0,1555.9,0.37033503]
[1744372523128,68.34573,1556.0,1555.8,1.1589445]
[1744372523427,68.34573,1556.0,1555.9,0.37033503]
[1744372523641,74.77263,1556.0,1555.8,1.1589445]
[1744372523830,74.77263,1556.0,1555.9,0.37033503]
[1744372524034,68.34573,1556.0,1555.8,1.1589445]
[1744372524329,74.7726,1556.0,1555.9,0.37033503]
[1744372524689,74.7726,1556.0,1555.8,1.1589445]
[1744372524941,6.42714,1555.9,1555.8,0.4009445]
[1744372525929,10.23144,1555.9,1555.8,0.4009445]
[1744372527235,14.43286141,1555.9,1555.8,0.4009445]
[1744372527441,10.23144,1555.9,1555.8,0.4009445]
[1744372527642,10.78144,1555.9,1555.8,0.4009445]
[1744372529241,14.43286141,1555.9,1555.8,0.4009445]
[1744372530054,10.78144,1555.9,1555.8,0.4009445]
[1744372531756,10.23144,1555.9,1555.8,0.4009445]
[1744372532056,9.42714,1555.9,1555.8,0.4009445]
[1744372532353,6.42714,1555.9,1555.8,0.4009445]
[1744372532930,6.42714,1555.9,1555.8,0.96185631]
[1744372533130,73.09690649,1556.0,1555.8,0.4009445]
[1744372533436,6.786,1555.9,1555.8,1.73231406]
[1744372534959,13.21314,1555.9,1555.8,0.96121406]
[1744372535259,13.21314,1555.9,1555.8,0.4009445]
[1744372536162,13.21314,1555.9,1555.8,0.96201688]
[1744372536358,13.21314,1555.9,1555.8,0.4009445]
[1744372536561,13.21314,1555.9,1555.8,0.96201688]
[1744372537948,6.786,1555.9,1555.8,0.96201688]
[1744372538627,13.21314,1555.9,1555.8,0.96201688]
[1744372540025,13.21314,1555.9,1555.8,0.4009445]
[1744372540966,13.21314,1555.9,1555.8,0.96298038]
[1744372541135,13.21314,1555.9,1555.8,0.4009445]
[1744372541339,13.21314,1555.9,1555.8,0.96298038]
[1744372541558,13.21314,1555.9,1555.8,0.4009445]
[1744372542677,13.21314,1555.9,1555.8,0.96259048]
[1744372545485,6.786,1555.9,1555.8,0.96259048]
[1744372546574,6.786,1555.9,1555.8,8.15255048]
[1744372552628,6.42687,1556.0,1555.8,0.4009445]
[1744372552932,6.42687,1556.0,1554.8,1.09791821]
[1744372552933,0.7619,1555.4,1554.8,1.09791821]
[1744372553139,6.786,1555.3,1555.1,7.20879]
[1744372553430,6.786,1555.3,1555.1,0.7785]
[1744372554829,6.786,1555.3,1555.1,7.20894]
[1744372555015,6.786,1555.3,1555.2,6.43004]
[1744372555216,6.786,1555.3,1555.1,0.7785]
[1744372555532,13.21563,1555.3,1555.1,0.7785]
[1744372555697,6.786,1555.3,1555.1,0.7785]
[1744372555901,13.21574,1555.3,1555.1,0.7785]
[1744372556100,19.6456,1555.3,1555.1,0.7785]
[1744372556327,19.6456,1555.3,1554.9,7.19249]
[1744372556328,6.4302,1555.2,1554.9,7.19249]
[1744372556633,12.86053,1555.2,1554.9,0.7616]
[1744372557128,6.43072,1555.1,1554.9,0.7616]
[1744372557434,7.5405,1555.3,1554.9,0.7616]
[1744372557435,13.97017,1555.3,1554.9,0.7616]
[1744372557648,6.43085,1555.1,1554.7,7.23552]
[1744372557854,13.68565,1555.0,1554.6,13.08889141]
[1744372558148,7.25451,1555.0,1554.7,6.43206]
[1744372558344,7.2587,1554.7,1554.6,0.005]
[1744372558642,6.4321,1554.7,1554.6,0.005]
[1744372559138,6.4321,1554.7,1554.6,0.53550589]
[1744372559640,6.42904206,1554.7,1554.6,0.53550589]
[1744372560450,6.97904206,1554.7,1554.6,0.53550589]
[1744372560749,10.74044206,1554.7,1554.6,0.53550589]
[1744372560934,10.74044206,1554.7,1554.6,0.005]
[1744372561311,10.74044206,1554.7,1554.6,0.53743556]
[1744372561636,13.98934,1554.9,1554.6,0.53695309]
[1744372561831,20.42101,1554.9,1554.6,0.53695309]
[1744372562015,6.787,1554.9,1554.7,6.4321]
[1744372562346,13.21828,1554.9,1554.8,0.5296139]
[1744372562568,16.63222,1555.1,1554.8,0.5296139]
[1744372562735,7.18147,1555.6,1555.2,6.43004]
[1744372562930,12.85807,1555.5,1555.1,12.86078]
[1744372563257,4.75117649,1555.7,1555.6,6.42838]
[1744372563755,4.75117649,1555.7,1555.6,6.94069621]
[1744372564263,6.03999397,1556.1,1556.0,6.42673]
[1744372564434,3.97e-06,1556.1,1556.0,13.86925141]
[1744372564755,11.61537302,1556.1,1556.0,13.86925141]
[1744372564955,11.61537302,1556.1,1556.0,2.53735796]
[1744372565163,11.61537302,1556.1,1556.0,0.49905706]
[1744372565363,11.61537302,1556.1,1556.0,6.92578706]
[1744372567736,13.20809,1556.4,1556.0,6.92578706]
[1744372567737,13.20809,1556.4,1556.0,13.35251706]
[1744372567943,19.63357,1556.4,1556.0,6.92578706]
[1744372568145,13.20809,1556.4,1556.0,6.92578706]
[1744372568349,19.63349,1556.4,1556.0,6.92578706]
[1744372568552,13.20809,1556.4,1556.0,0.49905706]
[1744372568834,6.783,1556.4,1556.1,6.42602]
[1744372569037,6.783,1556.4,1556.2,0.50531788]
[1744372569281,13.20809,1556.4,1556.1,6.42602]
[1744372569650,13.20809,1556.4,1556.2,0.50628044]
[1744372569960,19.6334,1556.4,1556.2,0.50628044]
[1744372570159,6.4256,1556.3,1555.9,13.32829081]
[1744372570367,6.4256,1556.3,1556.0,6.42672]
[1744372570569,19.63347,1556.4,1556.0,13.3628967]
[1744372570766,19.63347,1556.4,1556.0,6.9361767]
[1744372571078,19.63349,1556.4,1556.0,13.3627867]
[1744372571274,6.783,1556.4,1556.1,12.85246]
[1744372571578,6.783,1556.4,1556.2,6.42579]
[1744372571974,13.20808,1556.4,1556.3,0.50591563]
[1744372572477,13.20808,1556.4,1556.3,0.50623649]
[1744372572702,13.20808,1556.4,1556.1,6.42617]
[1744372572894,13.20808,1556.4,1556.3,0.50623649]
[1744372573284,13.20808,1556.4,1556.1,6.42617]
[1744372573479,13.20206,1556.9,1556.3,4.83355725]
[1744372573814,6.42391,1556.7,1556.4,6.42503]
[1744372574104,6.42462,1556.6,1556.4,0.50490951]
[1744372574309,6.779,1556.5,1556.4,0.50490951]
[1744372574606,6.779,1556.5,1556.2,6.42573]
[1744372574902,6.779,1556.5,1556.4,6.42508]
[1744372575102,6.779,1556.5,1556.3,8.04888305]
[1744372575305,6.779,1556.5,1556.4,6.93063119]
[1744372575608,6.779,1556.6,1556.4,0.50555119]
[1744372575906,6.779,1556.6,1556.5,6.42467]
[1744372576411,6.42304,1556.9,1556.6,6.42422]
[1744372576708,7.22925,1557.0,1556.7,6.92329683]
[1744372577015,0.8066,1557.0,1556.7,13.34710683]
[1744372577170,7.22933,1557.0,1556.7,0.49948683]
[1744372577373,6.42303,1556.9,1556.7,0.49948683]
[1744372577587,13.65228,1557.0,1556.6,12.84824]
[1744372577793,7.22933,1557.0,1556.7,6.88109409]
[1744372578027,0.8066,1557.0,1556.8,6.42331]
[1744372578221,0.8066,1557.0,1556.9,0.45309974]
[1744372578530,7.2292,1557.0,1556.7,12.8474]
[1744372578733,7.2292,1557.0,1556.7,12.84739]
[1744372578917,7.2292,1557.0,1556.8,0.45506791]
[1744372579118,0.8066,1557.0,1556.8,0.45506791]
[1744372579829,6.779,1557.1,1556.8,6.87844791]
[1744372580039,6.779,1557.1,1556.8,0.45506791]
[1744372580222,6.42302,1556.9,1556.6,6.42414]
[1744372580528,6.42302,1556.9,1556.7,0.46273094]
[1744372580825,6.97266,1557.0,1556.7,6.4238]
[1744372581031,6.42304,1556.9,1556.8,0.46172499]
[1744372581227,12.8462,1556.9,1556.6,6.42416]
[1744372581428,12.84622,1556.9,1556.6,6.42416]
[1744372581744,12.84622,1556.9,1556.7,0.46180302]
[1744372582232,12.84622,1556.9,1556.8,0.46111781]
[1744372582437,6.42415,1556.7,1556.3,13.32503268]
[1744372582609,6.777,1556.6,1556.4,6.88942018]
[1744372582811,6.777,1556.6,1556.4,0.46434018]
[1744372582995,6.777,1556.6,1556.4,6.88929018]
[1744372583201,6.777,1556.6,1556.4,13.31418018]
[1744372583404,6.777,1556.6,1556.4,6.88923018]
[1744372583737,6.777,1556.6,1556.5,6.42467]
[1744372584096,6.777,1556.6,1556.5,6.88768319]
[1744372584333,6.777,1556.9,1556.6,12.84838]
[1744372584512,6.777,1556.9,1556.7,6.42382]
[1744372584709,7.20539,1557.1,1556.8,6.4231]
[1744372585044,7.20539,1557.1,1556.9,6.8786931]
[1744372585045,0.7831,1557.1,1556.9,6.8786931]
[1744372585421,6.777,1557.0,1556.9,0.4557031]
[1744372585606,6.777,1557.0,1556.8,6.4231]
[1744372585806,6.777,1557.0,1556.9,0.4540205]
[1744372586128,13.19965,1557.0,1556.7,6.42372]
[1744372586318,13.19965,1557.0,1556.9,0.45418078]
[1744372586510,6.777,1557.0,1556.8,0.45502583]
[1744372586844,6.777,1557.0,1556.9,0.4535397]
[1744372587329,6.777,1557.0,1556.8,6.42341]
[1744372587500,6.777,1557.0,1556.9,0.45321918]
[1744372587906,6.777,1557.0,1556.8,6.42341]
[1744372588217,6.777,1557.0,1556.9,0.45289868]
[1744372588409,6.777,1557.0,1556.8,6.42331]
[1744372588609,6.777,1557.0,1556.9,0.45305893]
[1744372588822,6.777,1557.0,1556.8,6.4233]
[1744372589145,6.777,1557.0,1556.9,0.45305893]
[1744372589511,6.777,1557.0,1556.8,6.4233]
[1744372589719,6.777,1557.0,1556.9,0.45289868]
[1744372590016,6.777,1557.0,1556.8,12.84662]
[1744372590210,6.777,1557.0,1556.9,0.45161684]
[1744372590410,6.777,1557.0,1556.8,12.84657]
[1744372590626,6.777,1557.0,1556.9,0.45145663]
[1744372590829,6.777,1557.0,1556.8,6.42328]
[1744372591031,6.777,1557.0,1556.9,0.45129642]
[1744372591230,6.777,1557.0,1556.8,6.42328]
[1744372591534,6.777,1557.0,1556.9,0.45177706]
[1744372591847,6.777,1557.0,1556.8,6.42328]
[1744372592012,6.777,1557.0,1556.9,0.45145663]
[1744372592213,6.777,1557.0,1556.8,12.84658]
[1744372592506,6.777,1557.0,1556.9,0.45129642]
[1744372592712,6.777,1557.0,1556.9,6.87431642]
[1744372592907,6.777,1557.0,1556.9,6.42302]
[1744372593144,14.16837,1557.3,1556.9,13.29974378]
[1744372593322,7.74678,1557.3,1556.9,6.87672378]
[1744372593520,12.84373,1557.2,1556.9,6.87672378]
[1744372593940,6.42225,1557.1,1556.9,0.45370378]
[1744372594233,6.42225,1557.1,1556.8,7.18978]
[1744372594234,6.775,1557.0,1556.8,7.18978]
[1744372594412,6.775,1557.0,1556.9,0.45434472]
[1744372594612,6.775,1557.0,1556.9,6.42302]
[1744372594809,6.775,1557.0,1556.9,6.87736472]
[1744372595043,6.775,1557.0,1556.9,0.45434472]
[1744372595252,6.775,1557.0,1556.8,7.18971]
[1744372595437,6.775,1557.0,1556.9,0.45434472]
[1744372595636,6.775,1557.0,1556.8,13.61303]